bitfinex-derivatives/quotes_ETHF0:USTF0_20241104
["timestamp","ask_amount","ask_price","bid_price","bid_amount"]
[1730755617461,2.44518739,2413.5,2413.2,3.2078]
[1730755617677,2.44518739,2413.5,2413.2,3.62249]
[1730755617871,2.44518739,2413.3,2413.1,4.89765691]
[1730755618169,2.44518739,2413.2,2413.1,4.48295691]
[1730755618471,2.44518739,2413.2,2413.1,4.89766691]
[1730755618768,2.44518739,2413.2,2413.1,4.48295691]
[1730755618968,2.44518739,2413.2,2413.1,4.89766691]
[1730755619170,2.44518739,2413.2,2413.1,4.48295691]
[1730755619764,2.44518739,2413.2,2413.1,4.89766691]
[1730755620372,40.8,2413.5,2413.1,4.89766691]
[1730755620373,3.2078,2413.9,2413.1,13.17816802]
[1730755620665,2.44518739,2413.4,2413.1,9.44886802]
[1730755621263,2.44518739,2413.4,2413.3,0.41468]
[1730755621667,2.44518739,2413.4,2413.2,0.41469]
[1730755621870,44.0078,2413.8,2413.3,3.2078]
[1730755622068,6.06761739,2413.6,2413.3,4.71320111]
[1730755622268,0.41468,2413.3,2413.2,4.71320111]
[1730755622460,5.65298739,2413.3,2412.8,4.48295691]
[1730755622660,2.44518739,2413.0,2412.8,4.48295691]
[1730755622869,2.44518739,2413.0,2412.9,0.41474]
[1730755623470,0.41462,2413.7,2413.2,0.41468]
[1730755623667,2.44518739,2413.3,2413.2,4.89763691]
[1730755624073,3.62238,2413.9,2413.5,0.41464]
[1730755624273,2.44518739,2413.6,2413.4,0.41465]
[1730755624468,3.2078,2413.9,2413.2,12.45964023]
[1730755624664,2.44518739,2413.3,2413.2,4.48295691]
[1730755625270,2.44518739,2413.3,2413.1,0.41471]
[1730755625471,3.2078,2413.8,2413.1,0.41471]
[1730755625472,2.44518739,2413.2,2413.1,0.41471]
[1730755625765,2.44518739,2413.2,2412.9,3.62254]
[1730755626178,2.44518739,2413.2,2412.9,4.96880792]
[1730755626778,2.44518739,2413.2,2413.0,0.41473]
[1730755626979,3.2078,2413.5,2413.0,3.2078]
[1730755627179,2.44518739,2413.4,2413.3,4.48295691]
[1730755627470,2.44518739,2413.4,2413.3,4.89763691]
[1730755627673,2.44518739,2413.4,2413.3,4.48295691]
[1730755627873,2.44518739,2413.4,2413.3,4.89763691]
[1730755628075,2.44518739,2413.4,2413.0,7.69075691]
[1730755628273,2.44518739,2413.1,2412.9,0.41473]
[1730755628479,2.44518739,2413.1,2412.6,7.69075691]
[1730755628480,3.2078,2413.5,2413.1,0.41471]
[1730755628681,3.62245,2413.5,2413.1,0.41471]
[1730755628980,2.44518739,2413.2,2413.1,0.41471]
[1730755629278,0.41471,2413.1,2412.6,4.48295691]
[1730755629478,0.41471,2413.1,2412.2,3.2078]
[1730755629479,2.85996739,2412.7,2412.3,4.89779691]
[1730755629685,4.24458,2413.1,2412.5,0.41481]
[1730755629686,2.44518739,2412.6,2412.5,0.41481]
[1730755629981,2.44518739,2412.6,2412.5,3.62261]
[1730755630682,3.2078,2413.1,2412.5,3.2078]
[1730755630981,2.44518739,2412.9,2412.8,4.89771691]
[1730755631483,2.44518739,2412.9,2412.8,4.48295691]
[1730755631986,3.2078,2413.6,2412.8,7.69075691]
[1730755632184,2.44518739,2413.1,2413.0,0.41473]
[1730755632488,2.44518739,2413.3,2413.2,0.41469]
[1730755632783,2.44518739,2413.4,2413.0,5.51974691]
[1730755633080,2.44518739,2413.5,2413.2,4.72699079]
[1730755633281,2.44518739,2413.5,2413.4,4.89761691]
[1730755633887,0.41453,2414.2,2413.8,0.41458]
[1730755634091,2.44518739,2414.0,2413.8,4.89754691]
[1730755634293,1.03611,2414.7,2413.9,0.4144]
[1730755634294,2.44518739,2414.2,2413.9,0.4144]
[1730755634583,2.44518739,2414.3,2414.1,7.69075691]
[1730755634782,2.44518739,2414.3,2414.2,0.41452]
[1730755635080,44.0078,2414.9,2414.1,4.48295691]
[1730755635081,2.44518739,2414.2,2414.1,4.48295691]
[1730755635282,2.44518739,2414.2,2414.1,4.89749691]
[1730755635586,2.44518739,2414.2,2414.1,8.10529691]
[1730755635986,2.44518739,2414.2,2414.0,3.2078]
[1730755636179,2.44518739,2413.9,2413.8,4.89753691]
[1730755636384,2.44518739,2413.9,2413.8,8.10533691]
[1730755636579,2.44518739,2413.9,2413.8,8.10534691]
[1730755637087,2.44518739,2413.9,2413.8,4.48295691]
[1730755637283,2.44518739,2413.9,2413.4,4.48295691]
[1730755637487,3.2078,2414.2,2413.4,4.48295691]
[1730755637686,2.44518739,2413.8,2413.6,4.66034183]
[1730755637884,2.44518739,2413.8,2413.5,3.2078]
[1730755638190,2.44518739,2413.8,2413.6,0.41462]
[1730755638589,2.44518739,2413.7,2413.4,4.48295691]
[1730755638791,2.44518739,2413.6,2413.5,0.41463]
[1730755638993,2.44518739,2413.6,2413.5,3.2078]
[1730755639189,2.44518739,2413.6,2413.5,3.62244]
[1730755639386,3.2078,2414.1,2413.8,0.41459]
[1730755639588,2.44518739,2414.0,2413.9,3.62237]
[1730755639899,2.44518739,2414.0,2413.8,4.48295691]
[1730755640392,2.44518739,2414.0,2413.8,7.69075691]
[1730755640799,2.44518739,2413.9,2413.8,4.48295691]
[1730755641093,2.85975739,2413.9,2413.8,4.48295691]
[1730755641291,2.44518739,2413.9,2413.8,4.48295691]
[1730755641496,2.44518739,2413.9,2413.6,3.62241]
[1730755641497,2.85976739,2413.9,2413.6,3.2078]
[1730755641691,2.44518739,2413.7,2413.4,4.48295691]
[1730755641892,2.44518739,2413.6,2413.5,3.62244]
[1730755642293,2.44518739,2413.6,2413.4,7.69075691]
[1730755642499,2.85982739,2413.5,2413.1,4.89765691]
[1730755642688,2.44518739,2413.5,2413.2,0.41469]
[1730755642894,2.44518739,2413.5,2413.3,0.41466]
[1730755643093,2.44518739,2413.5,2413.3,3.62246]
[1730755643399,2.44518739,2413.5,2413.3,0.41467]
[1730755643599,2.44518739,2413.5,2413.4,4.89761691]
[1730755645496,3.2078,2414.2,2413.4,13.36456294]
[1730755645695,2.44518739,2414.0,2413.9,0.41457]
[1730755646002,1.06764356,2414.7,2414.0,5.84582802]
[1730755646207,2.44518739,2414.5,2414.4,0.41449]
[1730755646501,2.44518739,2414.7,2414.6,0.41444]
[1730755646695,2.44518739,2414.7,2414.6,3.2078]
[1730755646906,2.44518739,2414.7,2414.6,3.62225]
[1730755647196,0.41434,2415.3,2414.9,0.41439]
[1730755647393,2.44518739,2415.1,2415.0,0.41438]
[1730755647589,2.44518739,2415.2,2415.0,7.18609443]
[1730755647793,40.8,2415.4,2415.1,3.97829443]
[1730755647995,2.44518739,2415.3,2415.2,0.41435]
[1730755648392,40.8,2415.4,2415.3,0.41433]
[1730755648597,43.24518739,2415.4,2415.3,0.41433]
[1730755648806,40.8,2415.4,2415.3,3.62213]
[1730755648998,40.8,2415.4,2415.3,0.41433]
[1730755649302,1.55365893,2416.2,2415.3,0.41433]
[1730755649303,1.06764356,2416.3,2415.8,0.41425]
[1730755649603,2.44518739,2415.9,2415.8,4.88826729]
[1730755649798,2.44518739,2416.3,2416.1,0.4142]
[1730755649993,2.44518739,2416.3,2416.2,4.88819729]
[1730755650190,0.41411,2416.7,2416.2,4.88819729]
[1730755650191,1.06764356,2416.7,2416.2,4.47401729]
[1730755650408,4.76145893,2416.8,2416.2,9.15328469]
[1730755650409,40.8,2416.6,2416.2,9.15328469]
[1730755650698,5.65298739,2416.3,2415.8,4.47401729]
[1730755650901,40.8,2416.6,2415.5,4.47401729]
[1730755650902,2.44518739,2415.9,2415.5,4.47401729]
[1730755651100,2.44518739,2415.9,2415.5,4.88831729]
[1730755651408,2.44518739,2415.9,2415.5,8.8266257]
[1730755651709,2.44518739,2415.9,2415.5,9.2409157]
[1730755651893,2.44518739,2415.9,2415.5,8.8266257]
[1730755652091,4.27544356,2416.4,2415.8,7.68181729]
[1730755652398,42.35365893,2416.6,2416.4,0.41414]
[1730755652399,40.8,2416.6,2416.4,0.41414]
[1730755652700,3.65354356,2417.2,2416.5,4.76070376]
[1730755652899,2.44518739,2416.7,2416.5,4.76070376]
[1730755653098,4.68947356,2417.1,2416.5,0.41412]
[1730755653304,2.44518739,2416.7,2416.5,0.41412]
[1730755653499,2.44518739,2416.7,2416.6,3.2078]
[1730755654000,40.8,2417.0,2416.6,4.39257897]
[1730755654199,40.8,2417.0,2416.9,4.47401729]
[1730755654403,2.44518739,2416.8,2416.6,4.47401729]
[1730755654605,40.8,2417.0,2416.6,4.47401729]
[1730755654810,2.44518739,2416.9,2416.7,4.39257897]
[1730755655109,2.85929739,2416.7,2416.3,3.2078]
[1730755655297,0.41411,2416.6,2416.3,3.2078]
[1730755655492,2.44518739,2416.7,2416.4,4.51869085]
[1730755655909,5.65298739,2416.5,2415.9,7.68181729]
[1730755656098,40.8,2417.0,2415.9,7.68181729]
[1730755656099,2.44518739,2416.0,2415.9,7.68181729]
[1730755656293,2.44518739,2416.0,2415.9,4.47401729]
[1730755656701,2.85939739,2416.0,2415.9,4.47401729]
[1730755657000,2.85939739,2416.0,2415.6,4.47401729]
[1730755657001,5.65298739,2416.0,2415.6,4.47401729]
[1730755657204,5.65298739,2416.0,2415.2,4.47401729]
[1730755657205,0.4143,2415.5,2415.2,4.47401729]
[1730755657507,2.44518739,2415.3,2415.2,4.47401729]
[1730755658503,2.44518739,2415.3,2415.2,4.88836729]
[1730755658707,40.8,2415.3,2415.2,4.88836729]
[1730755658904,3.2078,2416.0,2415.5,0.41429]
[1730755659107,2.44518739,2415.8,2415.6,4.47401729]
[1730755659402,40.8,2415.7,2415.6,8.94229566]
[1730755659598,46.45298739,2415.7,2415.2,4.47401729]
[1730755659795,2.44518739,2415.3,2415.2,4.47401729]
[1730755660204,2.44518739,2415.3,2415.2,4.88836729]
[1730755660601,44.0078,2415.7,2415.3,0.41432]
[1730755660804,2.44518739,2415.5,2415.4,0.41432]
[1730755661012,2.44518739,2415.5,2415.4,4.88833729]
[1730755662405,3.2078,2415.8,2415.5,0.41429]
[1730755662601,2.44518739,2415.7,2415.6,0.41428]
[1730755662904,5.65298739,2415.8,2415.6,4.47303075]
[1730755663210,5.65298739,2415.8,2415.6,4.88730075]
[1730755664104,3.2078,2416.2,2415.7,4.1392]
[1730755664304,2.44518739,2416.2,2416.0,4.47401729]
[1730755664613,44.42188,2416.8,2416.0,7.68181729]
[1730755664797,44.42188,2416.8,2416.3,3.62196]
[1730755665002,2.44518739,2416.7,2416.4,4.88815729]
[1730755665311,2.44518739,2416.7,2416.6,0.41411]
[1730755666108,2.44518739,2416.7,2416.5,0.41412]
[1730755666398,2.44518739,2416.7,2416.4,12.63469119]
[1730755666705,2.44518739,2416.7,2416.5,0.41413]
[1730755667207,2.44518739,2416.7,2416.4,12.22056119]
[1730755667404,2.44518739,2416.5,2416.1,4.47401729]
[1730755667606,2.44518739,2416.4,2416.1,4.88820729]
[1730755667905,2.44518739,2416.4,2416.2,4.97879516]
[1730755668316,2.44518739,2416.4,2416.2,4.56462516]
[1730755668510,2.44518739,2416.3,2416.1,4.47401729]
[1730755668704,2.44518739,2416.2,2416.1,7.68181729]
[1730755669009,2.44518739,2416.2,2416.1,4.47401729]
[1730755669311,2.44518739,2416.2,2416.1,4.88821729]
[1730755670709,40.8,2416.8,2416.4,0.41414]
[1730755670909,2.44518739,2416.5,2416.4,0.41414]
[1730755671107,2.44518739,2416.5,2416.4,4.47401729]
[1730755671309,2.44518739,2416.5,2416.4,4.88815729]
[1730755671711,2.44518739,2416.5,2416.4,4.47401729]
[1730755671906,41.21408,2416.8,2416.4,4.47401729]
[1730755671907,40.8,2416.8,2416.4,4.47401729]
[1730755672108,3.2078,2416.9,2416.5,0.4144]
[1730755672411,3.62176,2417.5,2417.0,0.41403]
[1730755672710,2.7692,2417.6,2417.3,4.47401729]
[1730755672711,40.8,2417.4,2417.3,4.47401729]
[1730755673122,2.44518739,2417.4,2417.3,4.88800729]
[1730755673615,40.8,2417.7,2417.6,4.47401729]
[1730755674009,43.24518739,2417.7,2417.6,4.47401729]
[1730755674310,2.44518739,2417.7,2417.6,4.47401729]
[1730755675213,2.85910739,2417.7,2417.6,4.47401729]
[1730755675519,2.85910739,2417.7,2416.6,4.47401729]
[1730755675520,4.1368,2417.6,2416.6,4.47401729]
[1730755675820,3.2078,2416.7,2416.6,4.47401729]
[1730755676115,3.2078,2416.7,2416.3,4.47401729]
[1730755676306,3.62191,2416.7,2416.3,4.47401729]
[1730755676609,1.03505,2417.2,2416.3,4.47401729]
[1730755676610,3.2078,2417.0,2416.3,4.47401729]
[1730755676912,0.41412,2416.6,2416.3,4.47401729]
[1730755677410,3.6219,2416.7,2416.3,4.88817729]
[1730755677609,3.2078,2416.4,2416.3,4.47401729]
[1730755678005,3.2078,2416.4,2416.3,4.88817729]
[1730755678708,3.2078,2416.4,2416.3,4.47401729]
[1730755680116,3.2078,2416.4,2416.3,4.88817729]
[1730755680414,3.2078,2416.4,2416.3,4.47401729]
[1730755680612,3.62194,2416.4,2416.3,4.47401729]
[1730755680912,3.2078,2416.4,2416.3,4.47401729]
[1730755681511,3.62194,2416.4,2416.3,4.47401729]
[1730755681711,3.2078,2416.4,2416.3,4.47401729]
[1730755682215,3.2078,2416.4,2416.3,4.88817729]
[1730755682617,43.3357,2417.5,2416.6,0.41411]
[1730755682618,3.2078,2416.7,2416.6,0.41411]
[1730755682810,43.3357,2417.5,2416.6,4.47401729]
[1730755683009,43.3357,2417.5,2416.9,0.41405]
[1730755683010,0.414,2417.3,2416.9,0.41405]
[1730755683208,3.2078,2417.4,2416.6,12.06659278]
[1730755683415,3.62177,2417.4,2416.6,7.68181729]
[1730755683715,3.2078,2417.1,2416.8,0.41408]
[1730755683910,3.2078,2417.1,2416.8,0.41407]
[1730755684110,3.2078,2417.1,2416.7,4.59241344]
[1730755684414,3.2078,2417.1,2416.9,0.41405]
[1730755684613,3.2078,2417.1,2417.0,0.41404]
[1730755684809,3.2078,2417.1,2417.0,4.88805729]
[1730755685323,3.2078,2417.8,2417.0,13.88873649]
[1730755685512,3.2078,2417.8,2417.6,3.97469654]
[1730755685714,3.2078,2417.8,2417.7,0.41392]
[1730755685921,1.06764356,2418.6,2417.7,0.41392]
[1730755685922,3.2078,2418.1,2418.0,0.41387]
[1730755686210,0.41377,2418.6,2417.5,3.2078]
[1730755686211,0.41383,2418.3,2418.1,3.97469654]
[1730755686410,0.01551,2418.4,2417.9,3.97469654]
[1730755686823,0.42932,2418.4,2417.9,4.38857654]
[1730755687317,0.42932,2418.4,2417.8,3.2078]
[1730755687318,0.01551,2418.4,2418.0,4.47045143]
[1730755687622,0.01551,2418.4,2418.1,0.41384]
[1730755687813,0.01551,2418.4,2418.0,4.47045143]
[1730755688019,0.41385,2418.2,2417.8,0.4139]
[1730755688215,0.41385,2418.2,2417.8,3.6217]
[1730755688613,0.41385,2418.2,2417.6,4.47045143]
[1730755688614,0.41385,2418.2,2417.7,3.2078]
[1730755688820,0.41384,2418.2,2417.7,3.62171]
[1730755689021,3.2078,2418.3,2418.0,4.47045143]
[1730755689223,0.41383,2418.3,2418.0,4.47045143]
[1730755689418,0.41382,2418.3,2418.0,4.47045143]
[1730755689723,3.2078,2418.1,2417.6,4.47045143]
[1730755690220,0.41392,2417.7,2417.6,4.47045143]
[1730755690521,3.2078,2418.0,2417.6,4.47045143]
[1730755690720,0.41389,2417.9,2417.6,4.47045143]
[1730755691216,3.2078,2418.0,2417.6,4.47045143]
[1730755691522,4.29095356,2418.4,2417.9,4.47045143]
[1730755691720,0.41382,2418.3,2417.9,4.47045143]
[1730755692026,0.41386,2418.1,2417.9,4.47045143]
[1730755692323,3.22331,2418.4,2417.4,3.2078]
[1730755692324,7.3438,2418.0,2417.4,3.2078]
[1730755692515,3.2078,2418.0,2417.4,3.2078]
[1730755692915,3.2078,2418.0,2417.6,4.47045143]
[1730755693118,3.2078,2418.1,2417.6,4.47045143]
[1730755693825,0.41388,2418.0,2417.6,4.47045143]
[1730755694025,3.2078,2417.8,2417.2,4.47045143]
[1730755694327,3.2078,2417.8,2417.2,7.67825143]
[1730755694625,3.62172,2417.8,2417.3,0.41399]
[1730755694818,0.41393,2417.7,2417.2,7.67825143]
[1730755695019,0.41393,2417.7,2417.2,8.09225143]
[1730755695225,1.55365893,2418.1,2417.2,8.09225143]
[1730755695226,3.2078,2417.4,2417.2,4.47045143]
[1730755696425,3.62177,2417.4,2417.2,4.47045143]
[1730755696619,3.2078,2417.4,2417.2,4.47045143]
[1730755696930,4.27544356,2417.8,2417.5,0.41395]
[1730755697122,3.2078,2417.8,2417.7,0.41392]
[1730755698118,3.2078,2417.8,2417.6,4.47045143]
[1730755698519,44.0078,2418.1,2417.6,4.47045143]
[1730755698717,44.0078,2418.1,2417.7,0.41391]
[1730755698925,44.0078,2418.1,2417.6,4.47045143]
[1730755699129,0.41388,2418.0,2417.6,4.47045143]
[1730755699329,0.41388,2418.0,2417.6,4.88439143]
[1730755700323,44.0078,2418.1,2417.6,4.47045143]
[1730755700530,44.0078,2418.1,2417.7,0.41391]
[1730755700731,44.42166,2418.1,2417.7,0.41391]
[1730755701031,44.42166,2418.1,2417.6,4.47045143]
[1730755701032,0.41388,2418.0,2417.6,4.88438143]
[1730755701219,44.42166,2418.1,2417.7,0.41391]
[1730755701620,44.0078,2418.1,2418.0,0.41387]
[1730755702223,3.62157,2418.6,2418.3,0.41381]
[1730755702418,3.62158,2418.6,2418.2,0.41382]
[1730755702628,0.41378,2418.5,2418.2,0.41382]
[1730755702925,0.4138,2418.5,2418.0,7.91968107]
[1730755703329,44.42158,2418.6,2418.2,0.41383]
[1730755703529,44.0078,2418.6,2418.0,7.91968107]
[1730755703721,0.41381,2418.4,2418.0,8.33353107]
[1730755703920,0.41381,2418.4,2418.1,0.41385]
[1730755704126,44.0078,2418.6,2418.1,3.2078]
[1730755704329,0.41379,2418.5,2418.1,3.62164]
[1730755705032,44.0078,2418.6,2418.1,3.2078]
[1730755705218,44.42158,2418.6,2418.2,0.41383]
[1730755705423,0.4138,2418.5,2418.1,3.62164]
[1730755705627,44.42158,2418.6,2418.2,0.41383]
[1730755705922,0.41378,2418.5,2418.2,0.41383]
[1730755706527,0.1944839,2418.4,2418.2,0.41383]
[1730755706927,0.1944839,2418.4,2418.1,3.2078]
[1730755707126,0.1944839,2418.4,2418.1,0.41384]
[1730755707329,0.1944839,2418.4,2418.2,3.97354262]
[1730755707524,0.1944839,2418.3,2418.2,3.97354262]
[1730755708125,0.41384,2418.2,2417.9,3.97354262]
[1730755708422,3.2078,2418.3,2417.9,3.97354262]
[1730755708632,3.62167,2418.0,2417.9,3.97354262]
[1730755708817,3.62167,2418.0,2417.4,3.97354262]
[1730755708818,0.41396,2417.5,2417.4,3.97354262]
[1730755709021,3.2078,2418.0,2417.1,0.4144]
[1730755709022,3.2078,2417.7,2417.1,3.97354262]
[1730755709227,0.41395,2417.6,2417.2,0.414]
[1730755709426,3.2078,2417.7,2417.4,3.97354262]
[1730755709427,40.8,2417.5,2417.4,3.97354262]
[1730755709627,0.1944839,2417.5,2417.4,7.59531262]
[1730755709827,0.1944839,2417.5,2417.4,8.54222594]
[1730755710028,0.1944839,2417.5,2417.4,12.67902594]
[1730755710735,40.8,2417.8,2417.4,12.67902594]
[1730755710924,1.06764356,2418.3,2418.0,0.41386]
[1730755711130,1.06764356,2418.3,2418.1,3.97354262]
[1730755711324,44.0078,2418.4,2418.1,4.38738262]
[1730755711525,3.2078,2418.4,2418.2,0.41383]
[1730755712024,1.08399356,2418.7,2418.3,3.2078]
[1730755712335,0.01635,2418.7,2418.6,0.41377]
[1730755712530,4.27544356,2419.1,2418.6,4.54817]
[1730755712728,1.06764356,2419.4,2419.0,3.97354262]
[1730755712926,4.76145893,2419.5,2419.0,3.97354262]
[1730755712927,4.27544356,2419.5,2419.0,3.97354262]
[1730755713232,0.41364,2419.4,2419.0,4.38723262]
[1730755713636,0.41364,2419.4,2419.0,3.97354262]
[1730755713933,3.2078,2419.5,2419.1,4.45847553]
[1730755714128,3.2078,2419.2,2418.8,3.97354262]
[1730755714533,0.41372,2418.9,2418.8,3.97354262]
[1730755715427,3.62152,2418.9,2418.8,3.97354262]
[1730755716331,3.2078,2418.9,2418.8,3.97354262]
[1730755716537,3.2078,2418.9,2418.8,8.52167262]
[1730755717137,3.2078,2418.9,2418.8,4.38727262]
[1730755717431,3.2078,2418.9,2418.8,3.97354262]
[1730755718233,3.2078,2418.9,2418.2,3.97354262]
[1730755718234,1.03434,2418.8,2418.2,3.97354262]
[1730755718423,3.2078,2418.3,2418.2,3.97354262]
[1730755718736,3.62162,2418.3,2418.2,3.97354262]
[1730755718929,3.2078,2418.3,2418.2,3.97354262]
[1730755720932,3.2078,2418.7,2418.2,3.97354262]
[1730755721134,3.62155,2418.7,2418.6,3.97354262]
[1730755721331,7.75595,2418.7,2418.6,3.97354262]
[1730755722330,3.62155,2418.7,2418.6,3.97354262]
[1730755723435,3.2078,2418.7,2418.6,3.97354262]
[1730755723734,0.41375,2418.7,2418.6,3.97354262]
[1730755723936,1.06764356,2418.9,2418.6,3.97354262]
[1730755724337,0.41375,2418.7,2418.6,3.97354262]
[1730755725235,1.06764356,2418.8,2418.6,3.97354262]
[1730755725436,1.06764356,2418.9,2418.7,0.41375]
[1730755725641,0.41372,2418.9,2418.8,3.97354262]
[1730755726237,0.4138,2418.4,2418.3,3.97354262]
[1730755726641,0.4138,2418.4,2418.0,0.4136]
[1730755726642,0.41385,2418.1,2418.0,3.97354262]
[1730755726936,0.4139,2417.8,2417.7,3.97354262]
[1730755727139,3.2078,2417.8,2417.4,3.97354262]
[1730755727342,3.2078,2417.5,2417.4,3.97354262]
[1730755727532,45.48935356,2417.8,2417.5,0.41395]
[1730755727733,45.48935356,2417.8,2417.2,3.6222]
[1730755727734,1.06764356,2417.7,2417.2,3.6222]
[1730755728038,3.2078,2417.8,2417.7,0.41392]
[1730755728230,3.2078,2417.8,2417.7,4.54992]
[1730755729130,1.06764356,2418.1,2417.7,7.3438]
[1730755729336,1.48152356,2418.0,2417.9,3.97354262]
[1730755730127,1.06764356,2418.1,2417.9,3.97354262]
[1730755730327,1.06764356,2418.0,2417.9,3.97354262]
[1730755731127,1.48151356,2418.0,2417.9,3.97354262]
[1730755731441,0.41391,2417.8,2417.6,3.97354262]
[1730755731628,1.48486848,2417.8,2417.6,3.97354262]
[1730755731833,1.07095848,2417.8,2417.6,3.97354262]
[1730755732333,1.07095848,2417.8,2417.6,8.10954262]
[1730755732529,1.07095848,2417.9,2417.7,4.47104396]
[1730755732728,4.81418452,2418.0,2417.7,4.88496396]
[1730755732729,4.27875848,2418.0,2417.7,4.88496396]
[1730755732930,4.69262848,2418.0,2417.9,3.97354262]
[1730755733140,5.22805452,2418.0,2417.9,3.97354262]
[1730755733538,3.2078,2418.0,2417.9,3.97354262]
[1730755733735,3.2078,2418.0,2417.9,4.38743262]
[1730755734132,3.2078,2418.0,2417.9,3.97354262]
[1730755734445,3.62167,2418.0,2417.9,3.97354262]
[1730755734631,3.2078,2418.0,2417.9,3.97354262]
[1730755738750,1.07089797,2418.3,2417.9,16.38677435]
[1730755738952,1.07089797,2418.4,2418.2,7.18134262]
[1730755739138,1.60638452,2418.6,2418.2,3.97354262]
[1730755739139,3.2078,2418.3,2418.2,3.97354262]
[1730755739741,3.2078,2418.3,2418.2,4.38738262]
[1730755740350,3.2078,2418.3,2418.2,3.97354262]
[1730755740545,8.41389797,2418.3,2418.0,3.97354262]
[1730755740743,0.41385,2418.1,2418.0,3.97354262]
[1730755741153,0.41389,2417.9,2417.7,3.97354262]
[1730755741346,1.48503306,2417.9,2417.7,3.97354262]
[1730755741542,0.4139,2417.8,2417.7,3.97354262]
[1730755741742,1.07114306,2417.8,2417.7,3.97354262]
[1730755742045,1.07114306,2417.8,2417.5,0.4144]
[1730755742245,1.07114306,2417.8,2417.6,0.41394]
[1730755742444,1.07114306,2417.9,2417.4,3.97354262]
[1730755742655,1.07114306,2417.8,2417.4,3.97354262]
[1730755742948,1.07114306,2417.7,2417.1,3.97354262]
[1730755743153,3.2078,2417.4,2417.1,4.38794262]
[1730755743451,3.2078,2417.4,2417.1,8.5154967]
[1730755743752,0.41404,2417.0,2416.9,3.97354262]
[1730755744051,3.62184,2417.0,2416.9,3.97354262]
[1730755744252,3.62184,2417.0,2416.7,0.41409]
[1730755744645,1.07114306,2417.1,2416.7,7.18134262]
[1730755744957,0.41409,2416.7,2416.4,4.38768262]
[1730755745355,1.07114306,2416.8,2416.4,4.38794262]
[1730755745553,41.87114306,2416.8,2416.4,4.38794262]
[1730755745761,40.8,2416.8,2416.7,4.38763262]
[1730755746051,1.07114306,2417.1,2416.7,3.97354262]
[1730755746256,1.07114306,2417.4,2417.3,0.41399]
[1730755746550,0.41402,2417.1,2417.0,3.97354262]
[1730755746767,0.41403,2417.1,2416.8,3.97354262]
[1730755746947,1.07114306,2417.1,2416.8,3.97354262]
[1730755747152,1.48517306,2417.1,2416.8,3.97354262]
[1730755747346,1.48517306,2417.1,2416.8,4.38761262]
[1730755747748,4.27894306,2417.2,2416.8,3.97354262]
[1730755747953,3.2078,2417.2,2417.1,4.38756262]
[1730755748660,3.2078,2417.2,2416.8,3.97354262]
[1730755749156,0.41405,2417.0,2416.8,3.97354262]
[1730755749660,0.41403,2417.1,2416.8,3.97354262]
[1730755750046,0.41405,2417.0,2416.6,4.38764262]
[1730755750260,1.035,2417.3,2415.9,0.41422]
[1730755750261,0.41411,2416.6,2415.9,0.41422]
[1730755750557,1.482657,2416.7,2416.3,4.38770262]
[1730755750752,0.41411,2416.7,2416.3,4.38770262]
[1730755750951,40.8,2416.6,2416.3,4.38770262]
[1730755751256,0.41416,2416.3,2416.2,3.2078]
[1730755751455,0.41418,2416.2,2415.6,4.38794262]
[1730755751752,3.2078,2416.0,2415.4,0.41432]
[1730755751958,0.41425,2415.8,2415.4,0.41431]
[1730755752156,0.41426,2415.8,2415.4,0.41431]
[1730755752551,0.41426,2415.8,2415.4,4.38785262]
[1730755752950,3.2078,2416.0,2415.4,3.97354262]
[1730755753158,3.2078,2415.5,2415.1,3.97354262]
[1730755753354,5.57992714,2416.3,2414.8,0.41441]
[1730755753355,3.62215,2415.2,2414.8,0.41441]
[1730755753657,3.62215,2415.2,2414.8,4.53400282]
[1730755753658,3.2078,2415.2,2414.8,4.53400282]
[1730755753961,3.2078,2415.2,2414.8,4.94841282]
[1730755754159,3.2078,2415.2,2414.8,4.53400282]
[1730755754355,3.62216,2415.2,2414.8,0.41442]
[1730755754550,3.2078,2415.2,2414.7,4.47634488]
[1730755754755,3.2078,2415.2,2414.5,3.0074]
[1730755754955,0.41439,2415.0,2414.5,3.42186]
[1730755755163,0.41439,2415.0,2414.6,4.75781162]
[1730755755365,3.2078,2414.8,2414.5,3.0074]
[1730755755964,0.41441,2414.9,2414.5,3.0074]
[1730755755965,40.8,2414.9,2414.5,0.4144]
[1730755756151,3.2078,2415.4,2414.8,3.2078]
[1730755756350,3.2078,2415.4,2415.1,0.41436]
[1730755756760,3.2078,2415.4,2415.0,4.47634488]
[1730755756962,2.7927,2415.6,2414.3,1.03627]
[1730755756963,3.2078,2415.1,2414.7,0.41443]
[1730755757152,0.41436,2415.2,2414.7,0.41443]
[1730755757153,0.41436,2415.2,2414.7,3.62223]
[1730755757557,3.2078,2415.4,2415.0,0.41437]
[1730755757859,3.2078,2415.4,2415.0,3.62217]
[1730755758253,3.2078,2415.4,2414.8,3.2078]
[1730755758453,3.2078,2415.4,2414.6,8.09854488]
[1730755758658,0.41434,2415.3,2414.6,8.09854488]
[1730755758864,3.62212,2415.4,2414.9,0.4144]
[1730755759762,3.62212,2415.4,2414.7,4.64738685]
[1730755760064,3.62212,2415.4,2414.9,0.41439]
[1730755760859,3.2078,2415.4,2414.7,4.64738685]
[1730755761364,3.2078,2414.9,2414.1,3.1353]
[1730755761551,3.2078,2414.9,2414.2,5.762]
[1730755761752,0.41446,2414.6,2414.1,0.41453]
[1730755762160,40.8,2414.5,2414.2,0.41452]
[1730755762458,3.2078,2414.4,2414.1,4.54759895]
[1730755762857,40.8,2414.5,2414.1,3.2078]
[1730755763064,40.8,2414.5,2414.2,0.41452]
[1730755763361,40.8,2414.5,2414.1,3.2078]
[1730755763663,40.8,2414.5,2414.2,0.41452]
[1730755763857,0.41449,2414.4,2414.0,0.41455]
[1730755764058,3.2078,2414.4,2413.8,3.2078]
[1730755764458,3.2078,2414.4,2413.9,0.41457]
[1730755764666,3.6223,2414.4,2413.9,0.41457]
[1730755764965,3.2078,2414.4,2414.0,9.21794772]
[1730755765160,3.2078,2414.4,2414.1,0.41453]
[1730755765461,3.62229,2414.4,2414.0,4.89089488]
[1730755765858,4.24392,2414.7,2413.8,3.2078]
[1730755766162,4.24392,2414.7,2413.8,3.62238]
[1730755766163,0.41453,2414.2,2413.8,3.62238]